bitfinex/quotes_BTCUSD_20240828
["timestamp","ask_amount","ask_price","bid_price","bid_amount"]
[1724859869295,0.1373,58913.0,58906.0,0.33952]
[1724859869532,0.076,58913.0,58909.0,0.169751]
[1724859869779,0.076,58913.0,58910.0,0.0509264]
[1724859870028,0.169746,58912.0,58910.0,0.0509264]
[1724859870891,0.169747,58911.0,58910.0,0.0509264]
[1724859871133,0.169747,58911.0,58907.0,0.169756]
[1724859871355,0.169747,58911.0,58906.0,0.339523]
[1724859871568,0.509242,58911.0,58910.0,0.014]
[1724859871820,0.848737,58911.0,58910.0,0.014]
[1724859872036,1.333732,58911.0,58910.0,0.013]
[1724859872258,1.333732,58911.0,58897.0,0.169787]
[1724859872259,0.339543,58903.0,58897.0,0.169787]
[1724859872548,0.169779,58900.0,58898.0,0.0509371]
[1724859872771,0.169779,58900.0,58892.0,0.416499]
[1724859872772,0.169799,58893.0,58892.0,0.0769]
[1724859873025,0.169794,58895.0,58891.0,0.231004]
[1724859873280,0.07566781,58900.0,58893.0,0.339597]
[1724859873486,0.169788,58897.0,58893.0,0.169798]
[1724859873707,0.169791,58896.0,58891.0,0.169802]
[1724859873928,0.169791,58896.0,58892.0,0.1698]
[1724859874170,0.339564,58899.0,58894.0,0.169794]
[1724859874375,0.169791,58896.0,58892.0,0.07743865]
[1724859874588,0.169791,58896.0,58893.0,0.09878791]
[1724859874812,0.169791,58896.0,58893.0,0.11278791]
[1724859875301,0.169791,58896.0,58893.0,0.09878791]
[1724859875531,0.170791,58896.0,58893.0,0.09878791]
[1724859875745,0.170791,58896.0,58894.0,0.06224083]
[1724859876234,0.001,58896.0,58894.0,0.06224083]
[1724859876697,0.170791,58896.0,58894.0,0.06224083]
[1724859876918,0.169791,58896.0,58894.0,0.06224083]
[1724859877136,0.169791,58896.0,58893.0,0.028]
[1724859877137,0.169796,58894.0,58893.0,0.028]
[1724859877366,0.509389,58894.0,58893.0,0.028]
[1724859877646,0.509389,58894.0,58893.0,0.014]
[1724859877647,0.848982,58894.0,58893.0,0.014]
[1724859877858,0.848982,58894.0,58891.0,0.00020441]
[1724859877859,0.509406,58892.0,58891.0,0.00020441]
[1724859878074,0.84901,58892.0,58891.0,0.00020441]
[1724859879231,0.91371,58892.0,58891.0,0.00020441]
[1724859880640,1.8076694,58892.0,58891.0,0.00020441]
[1724859880646,1.8356694,58892.0,58891.0,0.00020441]
[1724859880888,1.9356694,58892.0,58891.0,0.00020441]
[1724859881134,1.9366694,58892.0,58891.0,0.01420441]
[1724859881359,1.9366694,58892.0,58891.0,0.02720441]
[1724859881597,1.9356694,58892.0,58891.0,0.01320441]
[1724859881827,1.94677877,58892.0,58891.0,0.00020441]
[1724859882070,1.94877877,58892.0,58891.0,0.00020441]
[1724859882533,1.94977877,58892.0,58891.0,0.00220441]
[1724859882763,1.94877877,58892.0,58891.0,0.00220441]
[1724859883019,1.94977877,58892.0,58891.0,0.00220441]
[1724859885564,1.94977877,58892.0,58891.0,0.002]
[1724859887216,2.15583137,58892.0,58891.0,0.002]
[1724859887436,2.16583137,58892.0,58891.0,0.002]
[1724859887903,2.50543537,58892.0,58891.0,0.002]
[1724859888133,1.96436677,58881.0,58880.0,0.0008987]
[1724859888430,2.08736677,58881.0,58880.0,0.0008987]
[1724859888664,2.25591841,58881.0,58880.0,0.0008987]
[1724859889412,2.05936677,58881.0,58880.0,0.0008987]
[1724859889647,1.429938,58881.0,58880.0,0.0008987]
[1724859889913,1.288838,58881.0,58880.0,0.0008987]
[1724859890134,0.849987,58881.0,58880.0,0.0008987]
[1724859890578,1.189655,58881.0,58880.0,0.0008987]
[1724859891268,1.189655,58881.0,58880.0,0.0048987]
[1724859891495,1.190655,58881.0,58880.0,0.0128987]
[1724859891728,0.850987,58881.0,58880.0,0.0128987]
[1724859891984,0.85078259,58881.0,58880.0,0.0128987]
[1724859892227,1.19045059,58881.0,58880.0,0.0128987]
[1724859892455,0.85078259,58881.0,58880.0,0.0128987]
[1724859896714,0.51111459,58881.0,58880.0,0.0128987]
[1724859897192,0.001817,58881.0,58880.0,0.0887987]
[1724859897432,0.001817,58881.0,58880.0,0.30148257]
[1724859897652,0.001817,58881.0,58880.0,1.04552857]
[1724859898121,0.001817,58881.0,58880.0,1.04152857]
[1724859898392,0.001817,58881.0,58880.0,1.38120157]
[1724859898597,0.001817,58881.0,58880.0,1.38720157]
[1724859898598,0.000817,58881.0,58880.0,1.38720157]
[1724859899052,0.001817,58881.0,58880.0,1.40120157]
[1724859901096,0.001817,58881.0,58880.0,2.03063534]
[1724859901320,0.001817,58881.0,58880.0,2.13063534]
[1724859901766,0.000817,58881.0,58880.0,2.11663534]
[1724859902003,0.000817,58881.0,58880.0,2.10263534]
[1724859902290,0.000817,58881.0,58880.0,2.11663534]
[1724859902551,0.000817,58881.0,58880.0,2.50830834]
[1724859902793,0.000817,58881.0,58880.0,2.13163534]
[1724859903031,0.000817,58881.0,58880.0,2.14563534]
[1724859903251,0.000817,58881.0,58880.0,2.13163534]
[1724859903480,0.000817,58881.0,58880.0,2.11763534]
[1724859904253,0.000817,58881.0,58880.0,2.13363534]
[1724859904478,0.000817,58881.0,58880.0,2.47130834]
[1724859904726,0.000817,58881.0,58880.0,2.48230834]
[1724859904954,0.000817,58881.0,58880.0,2.15663534]
[1724859905414,0.000817,58881.0,58880.0,2.51030834]
[1724859905930,0.000817,58881.0,58880.0,2.52306799]
[1724859906140,0.000817,58892.0,58891.0,1.93390577]
[1724859906395,0.000817,58892.0,58891.0,2.46070322]
[1724859906643,0.000817,58892.0,58891.0,2.80031322]
[1724859907072,0.000817,58892.0,58891.0,2.80231322]
[1724859908105,0.000817,58892.0,58891.0,2.81631322]
[1724859908322,0.000817,58892.0,58891.0,2.98486486]
[1724859909133,0.000817,58892.0,58891.0,2.99886486]
[1724859909594,0.000817,58892.0,58891.0,2.97086486]
[1724859909808,0.000817,58892.0,58891.0,2.98486486]
[1724859910478,0.000817,58892.0,58891.0,3.00980962]
[1724859912588,0.000817,58892.0,58891.0,3.00780962]
[1724859912810,0.000817,58892.0,58891.0,3.00880962]
[1724859913038,0.000817,58892.0,58891.0,3.00980962]
[1724859913494,0.000817,58892.0,58891.0,3.00780962]
[1724859914464,0.000817,58892.0,58891.0,2.00582885]
[1724859914678,0.000817,58892.0,58891.0,0.70596664]
[1724859915114,0.510223,58892.0,58891.0,0.028]
[1724859915556,0.000817,58892.0,58891.0,0.197805]
[1724859915787,0.000817,58892.0,58891.0,0.183805]
[1724859916004,0.000817,58892.0,58891.0,0.0523433]
[1724859916238,0.000817,58892.0,58891.0,0.028]
[1724859916482,0.000817,58892.0,58891.0,0.014]
[1724859916703,0.000817,58892.0,58891.0,0.509415]
[1724859916924,0.000817,58892.0,58891.0,0.857025]
[1724859917136,0.000817,58892.0,58891.0,0.98858]
[1724859917628,0.000817,58892.0,58891.0,1.33019]
[1724859918809,0.000817,58892.0,58891.0,1.31619]
[1724859919046,0.000817,58892.0,58891.0,1.33019]
[1724859919316,0.000817,58892.0,58891.0,1.00458]
[1724859919775,0.080217,58892.0,58891.0,0.155555]
[1724859919987,0.080217,58892.0,58891.0,0.028]
[1724859920213,0.000817,58892.0,58891.0,0.197805]
[1724859920441,0.000817,58892.0,58891.0,0.537415]
[1724859920662,0.000817,58892.0,58891.0,0.96795214]
[1724859921133,0.000817,58892.0,58891.0,1.37856966]
[1724859922239,0.000817,58892.0,58891.0,1.11095966]
[1724859922720,0.000817,58892.0,58891.0,1.47856966]
[1724859922905,0.000817,58892.0,58891.0,1.46456966]
[1724859923167,0.000817,58892.0,58891.0,1.52926966]
[1724859923394,0.000817,58892.0,58891.0,1.54326966]
[1724859925474,0.000817,58892.0,58891.0,1.55726966]
[1724859925730,0.000817,58892.0,58891.0,1.06795214]
[1724859925947,0.000817,58892.0,58891.0,1.39356214]
[1724859926172,0.000817,58892.0,58891.0,1.40756214]
[1724859926403,0.000817,58892.0,58891.0,1.06795214]
[1724859927332,0.000817,58892.0,58891.0,1.48836214]
[1724859927555,0.000817,58892.0,58891.0,1.06795214]
[1724859928245,0.000817,58892.0,58891.0,1.40756214]
[1724859930065,0.000817,58892.0,58891.0,1.06795214]
[1724859931628,0.000817,58892.0,58891.0,1.08685643]
[1724859933028,0.000817,58892.0,58891.0,0.04690429]
[1724859933029,0.591523,58892.0,58891.0,0.04690429]
[1724859933237,0.251919,58892.0,58891.0,0.04690429]
[1724859933463,0.591523,58892.0,58891.0,0.04690429]
[1724859933677,0.082117,58892.0,58891.0,0.028]
[1724859933901,0.251919,58892.0,58891.0,0.0507628]
[1724859934119,0.251919,58892.0,58891.0,0.066256]
[1724859934397,0.251919,58892.0,58891.0,0.061256]
[1724859934619,0.251919,58892.0,58891.0,0.0154932]
[1724859934838,0.591523,58892.0,58891.0,0.0434932]
[1724859935071,0.251919,58892.0,58891.0,0.028]
[1724859935286,0.251919,58892.0,58891.0,0.0294932]
[1724859935511,0.251919,58892.0,58891.0,0.0434932]
[1724859935726,0.251919,58892.0,58891.0,0.06482382]
[1724859935947,0.251919,58892.0,58891.0,0.0434932]
[1724859936162,0.591523,58892.0,58891.0,0.028]
[1724859936382,0.591523,58892.0,58891.0,0.0294932]
[1724859936597,0.251919,58892.0,58891.0,0.04793082]
[1724859936819,0.591523,58892.0,58891.0,0.0434932]
[1724859937047,1.270731,58892.0,58891.0,0.0434932]
[1724859937285,1.335431,58892.0,58891.0,0.028]
[1724859937521,1.8085781,58892.0,58891.0,0.028]
[1724859937787,1.8315781,58892.0,58891.0,0.028]
[1724859938239,1.8315781,58892.0,58891.0,0.014]
[1724859938895,1.8315781,58892.0,58891.0,0.025]
[1724859939363,0.002,58889.0,58881.0,0.0008987]
[1724859939580,1.333917,58882.0,58881.0,0.0008987]
[1724859940070,1.673579,58882.0,58881.0,0.0008987]
[1724859940328,1.80230263,58882.0,58881.0,0.0008987]
[1724859940519,2.26496463,58882.0,58881.0,0.0008987]
[1724859940794,2.27496463,58882.0,58881.0,0.0008987]
[1724859941003,2.43033931,58882.0,58881.0,0.0008987]
[1724859941261,2.43033931,58882.0,58881.0,0.0058987]
[1724859941498,1.93730263,58882.0,58881.0,0.0058987]
[1724859941729,2.01037789,58882.0,58881.0,0.0058987]
[1724859941966,2.01145247,58882.0,58881.0,0.0058987]
[1724859942399,1.86269685,58882.0,58881.0,0.0068987]
[1724859942623,1.86269685,58882.0,58881.0,0.0018987]
[1724859943306,1.86269685,58882.0,58881.0,0.0028987]
[1724859943545,1.82265358,58882.0,58881.0,0.0028987]
[1724859943769,1.99320522,58882.0,58881.0,0.0018987]
[1724859943981,1.99320522,58882.0,58881.0,0.0008987]
[1724859944203,1.98420522,58882.0,58881.0,0.0018987]
[1724859944506,2.33386722,58882.0,58881.0,0.0018987]
[1724859944707,2.33386722,58882.0,58881.0,0.0001013]
[1724859944954,2.48670119,58882.0,58881.0,0.0001013]
[1724859945188,1.272402,58863.0,58862.0,0.0008987]
[1724859945606,1.27219759,58863.0,58862.0,0.0008987]
[1724859946082,1.33249759,58863.0,58862.0,0.0008987]
[1724859947603,1.33249759,58863.0,58862.0,0.0138987]
[1724859948765,1.33249759,58863.0,58862.0,0.0078987]
[1724859948976,1.33249759,58863.0,58862.0,0.0188987]
[1724859948977,1.33349759,58863.0,58862.0,0.0188987]
[1724859949194,1.33349759,58863.0,58862.0,0.0118987]
[1724859949676,1.46784735,58863.0,58862.0,0.0188987]
[1724859949888,1.33349759,58863.0,58862.0,0.0118987]
[1724859950353,1.33449759,58863.0,58862.0,0.0198987]
[1724859950600,2.15204159,58863.0,58862.0,0.0198987]
[1724859950836,1.98282123,58863.0,58862.0,0.0198987]
[1724859951047,1.98363923,58863.0,58862.0,0.0198987]
[1724859951279,1.98363923,58863.0,58862.0,0.0088987]
[1724859951505,1.98263923,58863.0,58862.0,0.0088987]
[1724859951727,1.98363923,58863.0,58862.0,0.0158987]
[1724859951995,1.77508759,58863.0,58862.0,0.0158987]
[1724859952247,1.09554359,58863.0,58862.0,0.0158987]
[1724859952463,0.99554359,58863.0,58862.0,0.0158987]
[1724859952676,0.99454359,58863.0,58862.0,0.0078987]
[1724859952929,0.99454359,58863.0,58862.0,0.0118987]
[1724859953372,1.33431559,58863.0,58862.0,0.0118987]
[1724859953796,1.46774715,58863.0,58862.0,0.0118987]
[1724859954217,1.33431559,58863.0,58862.0,0.0118987]
[1724859956047,0.99454359,58863.0,58862.0,0.0118987]
[1724859957411,0.93424359,58863.0,58862.0,0.0118987]
[1724859957628,0.59447159,58863.0,58862.0,0.0118987]
[1724859957837,0.51127159,58863.0,58862.0,0.0118987]
[1724859958571,0.85104359,58863.0,58862.0,0.0118987]
[1724859959884,0.51127159,58863.0,58862.0,0.0118987]
[1724859960348,0.85104359,58863.0,58862.0,0.0118987]
[1724859960763,0.51127159,58863.0,58862.0,0.0118987]
[1724859961205,0.85104359,58863.0,58862.0,0.0118987]
[1724859961635,0.51127159,58863.0,58862.0,0.0118987]
[1724859961853,0.17149959,58863.0,58862.0,0.0118987]
[1724859962281,0.51127159,58863.0,58862.0,0.02561697]
[1724859962517,0.51127159,58863.0,58862.0,0.0118987]
[1724859962956,0.51127159,58863.0,58862.0,0.02561697]
[1724859963200,0.85104359,58863.0,58862.0,0.0118987]
[1724859963441,0.85104359,58863.0,58862.0,0.02561697]
[1724859963442,1.19081559,58863.0,58862.0,0.02561697]
[1724859963654,1.19081559,58863.0,58862.0,0.0118987]
[1724859966339,1.67288759,58863.0,58862.0,0.0118987]
[1724859966555,1.87378604,58863.0,58862.0,0.0118987]
[1724859966773,1.97578604,58863.0,58862.0,0.0118987]
[1724859967441,1.97378604,58863.0,58862.0,0.0118987]
[1724859967680,1.97278604,58863.0,58862.0,0.0048987]
[1724859967897,1.98078604,58863.0,58862.0,0.0018987]
[1724859968356,1.98778604,58863.0,58862.0,0.0028987]
[1724859968599,1.98578604,58863.0,58862.0,0.0028987]
[1724859968825,1.98778604,58863.0,58862.0,0.0028987]
[1724859969073,1.98578604,58863.0,58862.0,0.0028987]
[1724859969314,1.98778604,58863.0,58862.0,0.0028987]
[1724859969813,1.98178604,58863.0,58862.0,0.0018987]
[1724859970052,1.97478604,58863.0,58862.0,0.0008987]
[1724859970269,1.98078604,58863.0,58862.0,0.0028987]
[1724859970490,1.98978604,58863.0,58862.0,0.0028987]
[1724859970743,1.43211559,58863.0,58862.0,0.0008987]
[1724859970958,1.18981559,58863.0,58862.0,0.0008987]
[1724859971228,1.18981559,58863.0,58862.0,0.0018987]
[1724859971229,1.19981559,58863.0,58862.0,0.0018987]
[1724859971473,1.19281559,58863.0,58862.0,0.0008987]
[1724859971692,1.27051559,58863.0,58862.0,0.0008987]
[1724859971913,1.27951559,58863.0,58862.0,0.0018987]
[1724859973064,1.27951559,58863.0,58862.0,0.0038987]
[1724859973721,1.27051559,58863.0,58862.0,0.0028987]
[1724859974175,1.27151559,58863.0,58862.0,0.0028987]
[1724859974867,1.19081559,58863.0,58862.0,0.0028987]
[1724859975539,1.39275715,58863.0,58862.0,0.0028987]
[1724859976263,1.26751559,58863.0,58862.0,0.0028987]
[1724859976501,1.19081559,58863.0,58862.0,0.0028987]
[1724859978858,1.29361559,58863.0,58862.0,0.0028987]
[1724859979101,1.79428759,58863.0,58862.0,0.0028987]
[1724859979313,1.79928759,58863.0,58862.0,0.0028987]
[1724859979544,1.82016605,58863.0,58862.0,0.0028987]
[1724859979778,2.32848969,58863.0,58862.0,0.0028987]
[1724859980452,2.03792521,58863.0,58862.0,0.0008987]
[1724859980666,2.04592521,58863.0,58862.0,0.0018987]
[1724859980885,2.03792521,58863.0,58862.0,0.0008987]
[1724859981104,2.38169721,58863.0,58862.0,0.0008987]
[1724859981326,2.05092521,58863.0,58862.0,0.0018987]
[1724859981540,1.81716605,58863.0,58862.0,0.0018987]
[1724859981772,1.86752883,58863.0,58862.0,0.0018987]
[1724859981987,1.79216605,58863.0,58862.0,0.0018987]
[1724859982425,1.94520547,58863.0,58862.0,0.0018987]
[1724859982661,1.96920547,58863.0,58862.0,0.0018987]
[1724859982891,2.14575711,58863.0,58862.0,0.0028987]
[1724859983559,2.05533964,58863.0,58862.0,0.0028987]
[1724859983813,2.39511164,58863.0,58862.0,0.0028987]
[1724859984883,2.73488364,58863.0,58862.0,0.0028987]
[1724859985111,2.88550985,58863.0,58862.0,0.0028987]
[1724859985563,2.85262569,58863.0,58862.0,0.0028987]
[1724859986493,2.51285369,58863.0,58862.0,0.0028987]
[1724859986942,2.85262569,58863.0,58862.0,0.0028987]
[1724859987156,2.51285369,58863.0,58862.0,0.0028987]
[1724859988547,2.51285369,58863.0,58843.0,4e-05]
[1724859988548,0.526718,58856.0,58843.0,4e-05]
[1724859988772,0.526718,58856.0,58822.0,0.008987]
[1724859988773,0.69489,58833.0,58822.0,0.008987]
[1724859989015,1.204909,58828.0,58822.0,0.008987]
[1724859989221,2.24804489,58828.0,58822.0,0.008987]
[1724859989440,2.73011039,58828.0,58822.0,0.008987]
[1724859989657,2.8516163,58828.0,58822.0,0.008987]
[1724859989885,2.0339774,58828.0,58822.0,0.008987]
[1724859990117,1.52640644,58828.0,58822.0,0.008987]
[1724859990385,0.93548105,58828.0,58825.0,0.077]
[1724859990647,0.509961,58828.0,58825.0,0.077]
[1724859990861,0.849935,58828.0,58825.0,0.077]
[1724859991293,0.509961,58828.0,58825.0,0.077]
[1724859991523,0.849935,58828.0,58825.0,0.077]
[1724859991743,0.850935,58828.0,58825.0,0.077]
[1724859992015,0.850935,58828.0,58822.0,0.008987]
[1724859992016,0.001,58828.0,58827.0,0.316976]
[1724859992226,0.05028488,58838.0,58832.0,0.077]
[1724859992444,0.169967,58835.0,58832.0,0.077]
[1724859992674,0.509884,58837.0,58832.0,0.077]
[1724859992909,0.16771533,58834.0,58833.0,0.0091854]
[1724859993146,0.169966,58836.0,58833.0,0.0091854]
[1724859993572,0.339911,58839.0,58833.0,0.0091854]
[1724859993573,0.339911,58839.0,58833.0,0.06779874]
[1724859993782,0.340918,58838.0,58833.0,0.06779874]
[1724859994013,0.340918,58838.0,58833.0,0.0081854]
[1724859994298,0.001,58834.0,58833.0,0.0081854]
[1724859994521,0.001,58834.0,58832.0,0.083]
[1724859994522,0.001,58834.0,58832.0,0.0751854]
[1724859994774,0.169964,58836.0,58833.0,0.04151534]
[1724859995252,0.169967,58835.0,58832.0,0.0751854]
[1724859995497,0.339926,58837.0,58832.0,0.0751854]
[1724859995730,0.16997,58834.0,58832.0,0.0751854]
[1724859995968,0.16997,58834.0,58833.0,0.008]
[1724859996440,0.0850826,58834.0,58827.0,0.069987]
[1724859996686,0.849935,58828.0,58827.0,0.008987]
[1724859996932,1.272509,58828.0,58827.0,0.008987]
[1724859997401,1.189909,58828.0,58827.0,0.008987]
[1724859997631,0.849935,58828.0,58827.0,0.008987]
[1724859998114,0.849935,58828.0,58827.0,0.010987]
[1724859998332,1.3088978,58828.0,58827.0,0.008987]
[1724859998774,1.189909,58828.0,58827.0,0.008987]
[1724859999018,0.509961,58828.0,58827.0,0.008987]
[1724859999242,0.509961,58828.0,58827.0,0.015987]
[1724859999243,0.850935,58828.0,58827.0,0.015987]
[1724859999715,0.849935,58828.0,58827.0,0.008987]
[1724859999937,0.850935,58828.0,58827.0,0.016987]
[1724860000150,0.511961,58828.0,58827.0,0.017987]
[1724860000633,0.511961,58828.0,58827.0,0.008987]
[1724860000634,0.849935,58828.0,58827.0,0.008987]
[1724860000846,0.850935,58828.0,58827.0,0.016987]
[1724860001062,0.851935,58828.0,58827.0,0.017987]
[1724860001536,0.850935,58828.0,58827.0,0.016987]
[1724860002009,0.851935,58828.0,58827.0,0.017987]
[1724860002257,1.270109,58828.0,58827.0,0.009987]
[1724860002479,1.3553025,58828.0,58827.0,0.009987]
[1724860002719,1.3553025,58828.0,58827.0,0.017987]
[1724860002720,1.3583025,58828.0,58827.0,0.017987]
[1724860002940,1.3563025,58828.0,58827.0,0.017987]
[1724860003189,2.18315558,58828.0,58827.0,0.009987]
[1724860003464,2.18915558,58828.0,58827.0,0.017987]
[1724860003706,2.19915558,58828.0,58827.0,0.017987]
[1724860003930,2.53812958,58828.0,58827.0,0.00578117]
[1724860004202,2.19715558,58828.0,58827.0,0.00478117]
[1724860004415,2.45193608,58828.0,58827.0,0.00478117]
[1724860004637,2.45193608,58828.0,58827.0,1.7e-07]
[1724860004638,2.45293608,58828.0,58827.0,1.7e-07]
[1724860004853,2.45293608,58828.0,58817.0,4e-05]
[1724860004854,2.032116,58823.0,58817.0,4e-05]
[1724860005105,2.24107657,58823.0,58817.0,4e-05]
[1724860005330,2.74865343,58823.0,58817.0,4e-05]
[1724860005572,2.748568,58823.0,58817.0,4e-05]
[1724860005847,2.58107957,58823.0,58817.0,4e-05]
[1724860006077,2.32979166,58823.0,58817.0,4e-05]
[1724860006319,2.44371118,58823.0,58822.0,0.009987]
[1724860006545,2.33272746,58823.0,58822.0,0.009987]
[1724860006763,2.24383109,58823.0,58822.0,0.008987]
[1724860006991,2.28376229,58823.0,58822.0,0.008987]
[1724860007207,1.823113,58823.0,58822.0,0.009987]
[1724860007421,1.8238915,58823.0,58822.0,0.009987]
[1724860008120,1.8378915,58823.0,58822.0,0.009987]
[1724860008375,1.8428915,58823.0,58822.0,0.009987]
[1724860008598,1.8428915,58823.0,58822.0,0.008987]
[1724860008599,2.00844314,58823.0,58822.0,0.008987]
[1724860009054,2.34844614,58823.0,58822.0,0.008987]
[1724860009504,2.02244314,58823.0,58822.0,0.009987]
[1724860009715,2.00844314,58823.0,58822.0,0.008987]
[1724860009980,1.99444314,58823.0,58822.0,0.008987]
[1724860010239,2.00044314,58823.0,58822.0,0.008987]
[1724860011452,2.35044614,58823.0,58822.0,0.008987]
[1724860011700,1.8018915,58823.0,58822.0,0.008987]
[1724860011924,1.7429915,58823.0,58822.0,0.008987]
[1724860012824,1.7359915,58823.0,58822.0,0.008987]
[1724860013458,1.7409915,58823.0,58822.0,0.008987]
[1724860013697,1.7659915,58823.0,58822.0,0.008987]
[1724860013924,1.7759915,58823.0,58822.0,0.00722948]
[1724860014156,2.28454614,58823.0,58822.0,0.00722948]
[1724860014364,2.26954614,58823.0,58822.0,0.00722948]
[1724860014580,2.27954614,58823.0,58822.0,0.00722948]
[1724860015500,2.32504908,58818.0,58817.0,4e-05]
[1724860015712,2.44804908,58818.0,58817.0,4e-05]
[1724860016364,2.10801808,58818.0,58817.0,4e-05]
[1724860016807,2.10901808,58818.0,58817.0,4e-05]
[1724860017026,1.654139,58818.0,58817.0,4e-05]
[1724860017503,1.8210529,58818.0,58817.0,4e-05]
[1724860017980,1.191108,58818.0,58817.0,4e-05]
[1724860018217,1.190108,58818.0,58817.0,4e-05]
[1724860018432,1.200108,58818.0,58817.0,0.00104]
[1724860018902,1.194108,58818.0,58817.0,4e-05]
[1724860019148,0.174015,58818.0,58817.0,4e-05]
[1724860019382,0.174015,58818.0,58817.0,0.08184]
[1724860019383,0.005,58818.0,58817.0,0.08184]
[1724860019609,0.175015,58818.0,58817.0,0.08184]
[1724860019841,0.005,58818.0,58817.0,0.08184]
[1724860020059,0.004,58818.0,58817.0,0.671809]
[1724860020319,0.004,58818.0,58817.0,0.996232]
[1724860020579,0.004,58818.0,58817.0,0.3170578]
[1724860020798,0.004,58818.0,58817.0,0.1470398]
[1724860021453,0.510046,58818.0,58817.0,0.1520398]
[1724860021902,0.510046,58818.0,58817.0,0.1470398]
[1724860022132,0.850077,58818.0,58817.0,0.1470398]
[1724860022413,1.191108,58818.0,58817.0,0.1540398]
[1724860022499,0.852077,58818.0,58817.0,0.0089398]
[1724860022697,0.850077,58818.0,58817.0,0.0009398]
[1724860022934,1.190108,58818.0,58817.0,0.0009398]
[1724860023212,1.3122108,58818.0,58817.0,0.0099398]
[1724860023355,1.3352108,58818.0,58817.0,0.0099398]
[1724860023554,1.7822418,58818.0,58817.0,0.0099398]
[1724860024400,1.7812418,58818.0,58817.0,0.0019398]
[1724860024615,1.197129,58817.0,58816.0,0.00875021]
[1724860024865,1.318129,58817.0,58816.0,0.00875021]
[1724860025253,1.658166,58817.0,58816.0,0.00875021]
[1724860025469,2.02304508,58817.0,58816.0,0.00875021]
[1724860025914,2.36408208,58817.0,58816.0,0.01275021]
[1724860026134,2.12030109,58817.0,58816.0,0.01275021]
[1724860026365,2.12130109,58817.0,58816.0,0.01475021]
[1724860027207,2.46133809,58817.0,58816.0,0.01475021]
[1724860027416,2.12030109,58817.0,58816.0,0.01075021]
[1724860027844,2.46433809,58817.0,58816.0,0.01075021]
[1724860028055,2.19693024,58817.0,58816.0,0.01075021]
[1724860028255,2.19193024,58817.0,58816.0,0.00875021]
[1724860028467,2.53996724,58817.0,58816.0,0.00875021]
[1724860028717,2.54696724,58817.0,58816.0,0.00875021]
[1724860028930,2.55696724,58817.0,58816.0,0.00875021]
[1724860029152,2.54996724,58817.0,58816.0,0.00875021]
[1724860029374,2.21393024,58817.0,58816.0,0.00875021]
[1724860030036,2.55396724,58817.0,58816.0,0.00875021]
[1724860030477,2.21193024,58817.0,58816.0,0.00875021]
[1724860030698,1.302129,58817.0,58816.0,0.00875021]
[1724860032226,1.642166,58817.0,58816.0,0.00875021]
[1724860032718,1.642166,58817.0,58816.0,0.00965001]
[1724860032952,2.1130786,58817.0,58816.0,0.00965001]
[1724860033172,2.28163024,58817.0,58816.0,0.00965001]
[1724860033380,2.35643024,58817.0,58816.0,0.00965001]
[1724860033589,2.69646724,58817.0,58816.0,0.00965001]
[1724860035106,2.69646724,58817.0,58816.0,0.00913856]
[1724860035552,2.69646724,58817.0,58816.0,5.6e-07]
[1724860035766,3.0394673,58817.0,58816.0,5.6e-07]
[1724860035977,2.6762547,58817.0,58816.0,5.6e-07]
[1724860036214,3.0394673,58817.0,58816.0,5.6e-07]
[1724860037295,2.6994303,58817.0,58816.0,5.6e-07]
[1724860037729,1.530504,58804.0,58803.0,0.00442756]
[1724860037952,1.653504,58804.0,58803.0,0.00442756]
[1724860038379,1.655504,58804.0,58803.0,0.00442756]
[1724860038792,2.000616,58804.0,58803.0,0.00442756]
[1724860039267,2.001616,58804.0,58803.0,0.00542756]
[1724860039863,2.00141139,58804.0,58803.0,0.00542756]
[1724860040040,2.00241139,58804.0,58803.0,0.01042756]
[1724860040664,2.00241139,58804.0,58803.0,0.00542756]
[1724860041076,2.00241139,58804.0,58803.0,0.005]
[1724860041077,2.00141139,58804.0,58803.0,0.005]
[1724860041703,1.532585,58801.0,58795.0,0.0621]
[1724860041936,1.655585,58801.0,58795.0,0.0621]
[1724860042368,1.653585,58801.0,58795.0,0.0621]
[1724860043932,1.290455,58801.0,58800.0,1.001308]
[1724860044161,1.190455,58801.0,58800.0,1.001308]
[1724860044369,1.193455,58801.0,58800.0,1.001308]
[1724860045239,0.170065,58801.0,58800.0,1.061308]
[1724860045464,0.340055,58814.0,58800.0,1.061308]
[1724860045706,0.17004,58810.0,58809.0,0.0779]
[1724860046349,0.510118,58810.0,58809.0,0.0779]
[1724860046783,0.850196,58810.0,58809.0,0.0779]
[1724860047003,0.510118,58810.0,58809.0,0.0779]
[1724860047451,0.511118,58810.0,58809.0,0.0809]
[1724860047950,0.511118,58810.0,58809.0,0.0799]
[1724860048401,1.48274339,58810.0,58809.0,0.0799]
[1724860048619,1.24266766,58810.0,58809.0,0.0799]
[1724860048882,0.90258966,58810.0,58809.0,0.0799]
[1724860049124,0.852196,58810.0,58809.0,0.0799]
[1724860049391,0.851196,58810.0,58809.0,0.0799]
[1724860049822,0.850196,58810.0,58809.0,0.0769]
[1724860050511,0.90058966,58810.0,58809.0,0.0769]
[1724860050720,0.851196,58810.0,58809.0,0.0799]
[1724860051138,0.850196,58810.0,58809.0,0.0769]
[1724860051592,0.90158966,58810.0,58809.0,0.0799]
[1724860052022,0.90258966,58810.0,58809.0,0.0819]
[1724860055612,1.24266766,58810.0,58809.0,0.0819]
[1724860056315,0.852196,58810.0,58809.0,0.0819]
[1724860057041,0.90257849,58810.0,58809.0,0.0819]
[1724860057278,0.56150049,58810.0,58809.0,0.0789]
[1724860057507,0.56250049,58810.0,58809.0,0.0819]
[1724860057722,0.90257928,58810.0,58809.0,0.0819]
[1724860058385,0.90157928,58810.0,58809.0,0.0799]
[1724860058794,0.90157928,58810.0,58809.0,0.0809]
[1724860059039,1.24065728,58810.0,58809.0,0.0769]
[1724860059482,0.90257928,58810.0,58809.0,0.0809]
[1724860060389,1.24265728,58810.0,58809.0,0.0809]
[1724860060625,0.90257928,58810.0,58809.0,0.0809]
[1724860061279,0.56250128,58810.0,58809.0,0.09499]
[1724860061494,0.56250128,58810.0,58809.0,0.0809]
[1724860062121,0.90257698,58810.0,58809.0,0.0809]
[1724860062332,0.56249898,58810.0,58809.0,0.0809]
[1724860062551,0.512118,58810.0,58809.0,0.0809]
[1724860063210,0.562504,58810.0,58809.0,0.0809]